[Event "ROU-ch Women 2021"]
[Site "Iasi"]
[Date "2021.04.21"]
[Round "4.4"]
[White "Marcu, Daria-Ana"]
[Black "Sandu, Mihaela"]
[Result "0-1"]
[ECO "B90"]
[WhiteElo "1533"]
[BlackElo "2268"]
[Annotator "NA"]
[PlyCount "66"]
[EventDate "2021.04.19"]
[EventType "swiss"]
[EventCountry "ROU"]
[SourceTitle "playchess.com"]
[Source "ChessBase"]
[SourceQuality "1"]
[TimeControl "5400+30"]

1. e4 {[%emt 0:00:00]} c5 {[%emt 0:00:00]} 2. Nf3 {[%emt 0:00:00]} d6 {[%emt 0:00:00]} 3. d4 {[%emt 0:00:00]} cxd4 {[%emt 0:00:00]} 4. Nxd4 {[%emt 0:00:00]} Nf6 {[%emt 0:00:00]} 5. Nc3 {[%emt 0:00:00]} a6 {[%emt 0:00:00]} 6. Be3 {[%emt 0:00:05]} b5 {[%emt 0:01:02]} 7. a3 {[%emt 0:00:30]} Bb7 {[%emt 0:00:15]} 8. f3 {[%emt 0:00:36]} Nbd7 {[%emt 0:01:00]} 9. Qd2 {[%emt 0:01:22]} Rc8 {[%emt 0:04:29]} 10. g4 {[%emt 0:04:44]} Ne5 {[%emt 0:00:59]} 11. Be2 {[%emt 0:00:17]} Nfd7 {[%emt 0:08:53]} 12. Nb3 {[%emt 0:05:48]} e6 {[%emt 0:03:14]} 13. O-O-O {[%emt 0:00:55]} Be7 {[%emt 0:01:10]} 14. f4 {[%emt 0:02:14]} Nc4 {[%emt 0:00:22]} 15. Bxc4 {[%emt 0:00:25]} bxc4 {[%emt 0:06:43]} 16. Nd4 {[%emt 0:01:14]} Nc5 {[%emt 0:00:35]} 17. Rhg1 {[%emt 0:04:22]} Nxe4 {[%emt 0:02:05]} 18. Nxe4 {[%emt 0:00:33]} Bxe4 {[%emt 0:00:03]} 19. Qc3 {[%emt 0:03:14]} O-O {[%emt 0:02:59]} 20. h4 {[%emt 0:04:17]} Qd7 {[%emt 0:14:27]} 21. h5 {[%emt 0:03:01]} f6 {[%emt 0:00:33]} 22. h6 {[%emt 0:02:50]} g6 {[%emt 0:07:25]} 23. f5 {[%emt 0:13:02]} e5 {[%emt 0:08:20]} 24. Ne6 {[%emt 0:02:29]} d5 {[%emt 0:00:22]} 25. Nxf8 {[%emt 0:24:09]} Bxf8 {[%emt 0:01:02]} 26. Bd2 {[%emt 0:01:59]} Qa4 {[%emt 0:23:55]} 27. Be3 {[%emt 0:18:18]} Rd8 {[%emt 0:00:05]} 28. Qd2 {[%emt 0:04:52]} Bxa3 {[%emt 0:01:05]} 29. Qc3 {[%emt 0:02:22]} Bb4 {[%emt 0:00:57]} 30. b3 {[%emt 0:00:32]} Qa5 {[%emt 0:00:39]} 31. Qb2 {[%emt 0:00:25]} c3 {[%emt 0:00:51]} 32. Qb1 {[%emt 0:00:09]} Qa3+ {[%emt 0:00:17]} 33. Qb2 {[%emt 0:00:08]} Qxb2# {[%emt 0:00:08]} 0-1

[Event "ROU-ch Women 2021"]
[Site "Iasi"]
[Date "2021.04.21"]
[Round "4.5"]
[White "Pancu, Aureliana-Eugenia"]
[Black "Andries, Alexia"]
[Result "1-0"]
[ECO "A08"]
[WhiteElo "1878"]
[BlackElo "1553"]
[Annotator "NA"]
[PlyCount "79"]
[EventDate "2021.04.19"]
[EventType "swiss"]
[EventCountry "ROU"]
[SourceTitle "playchess.com"]
[Source "ChessBase"]
[SourceQuality "1"]
[TimeControl "5400+30"]

1. e4 {[%emt 0:00:00]} c5 {[%emt 0:00:00]} 2. d3 {[%emt 0:00:00]} e6 {[%emt 0:00:00]} 3. Nf3 {[%emt 0:00:00]} Nc6 {[%emt 0:00:39]} 4. g3 {[%emt 0:00:28]} d5 {[%emt 0:02:11]} 5. Nbd2 {[%emt 0:00:14]} Bd6 {[%emt 0:00:51]} 6. Bg2 {[%emt 0:00:21]} Nf6 {[%emt 0:01:56]} 7. O-O {[%emt 0:00:22]} O-O {[%emt 0:00:04]} 8. Re1 {[%emt 0:00:45]} Qc7 {[%emt 0:01:32]} 9. Qe2 {[%emt 0:02:51]} e5 {[%emt 0:04:47]} 10. exd5 {[%emt 0:05:22]} Nxd5 {[%emt 0:00:07]} 11. c3 {[%emt 0:00:19]} Bf5 {[%emt 0:03:55]} 12. Ng5 {[%emt 0:06:48]} Nf6 {[%emt 0:01:11]} 13. Nde4 {[%emt 0:03:20]} Be7 {[%emt 0:07:30]} 14. Nxf6+ {[%emt 0:00:40]} Bxf6 {[%emt 0:00:10]} 15. Ne4 {[%emt 0:00:05]} Be7 {[%emt 0:00:59]} 16. Be3 {[%emt 0:01:18]} b6 {[%emt 0:03:48]} 17. h4 {[%emt 0:06:24]} Be6 {[%emt 0:02:44]} 18. Ng5 {[%emt 0:00:40]} Bxg5 {[%emt 0:00:35]} 19. Bxg5 {[%emt 0:00:59]} f6 {[%emt 0:00:05]} 20. Be3 {[%emt 0:01:04]} Rad8 {[%emt 0:00:32]} 21. Rac1 {[%emt 0:27:11]} Bd5 {[%emt 0:02:39]} 22. Bh3 {[%emt 0:00:52]} f5 {[%emt 0:03:17]} 23. b4 {[%emt 0:04:19]} f4 {[%emt 0:01:53]} 24. Bd2 {[%emt 0:07:20]} fxg3 {[%emt 0:03:23]} 25. fxg3 {[%emt 0:00:02]} Bf3 {[%emt 0:00:10]} 26. Qe3 {[%emt 0:07:20]} e4 {[%emt 0:00:07]} 27. Qg5 {[%emt 0:00:42]} h6 {[%emt 0:00:35]} 28. Bf4 {[%emt 0:00:34]} hxg5 {[%emt 0:00:45]} 29. Bxc7 {[%emt 0:00:02]} Rxd3 {[%emt 0:00:09]} 30. hxg5 {[%emt 0:02:54]} cxb4 {[%emt 0:00:12]} 31. cxb4 {[%emt 0:02:43]} Nxb4 {[%emt 0:00:09]} 32. Bf4 {[%emt 0:00:44]} Nxa2 {[%emt 0:00:13]} 33. Be6+ {[%emt 0:00:09]} Kh7 {[%emt 0:00:06]} 34. Bxa2 {[%emt 0:00:13]} b5 {[%emt 0:01:30]} 35. Rc6 {[%emt 0:02:10]} Rfd8 {[%emt 0:05:24]} 36. g6+ {[%emt 0:00:16]} Kh8 {[%emt 0:00:14]} 37. Rc2 {[%emt 0:00:41]} R3d5 {[%emt 0:01:28]} 38. Bxd5 {[%emt 0:00:15]} Rxd5 {[%emt 0:00:05]} 39. Rc8+ {[%emt 0:00:12]} Rd8 {[%emt 0:00:17]} 40. Rxd8# {[%emt 0:00:47]} 1-0

[Event "ROU-ch Women 2021"]
[Site "Iasi"]
[Date "2021.04.21"]
[Round "4.6"]
[White "Anghel, Maria"]
[Black "Pirvan, Maria"]
[Result "1-0"]
[ECO "D33"]
[WhiteElo "1918"]
[BlackElo "1529"]
[Annotator "NA"]
[PlyCount "85"]
[EventDate "2021.04.19"]
[EventType "swiss"]
[EventCountry "ROU"]
[SourceTitle "playchess.com"]
[Source "ChessBase"]
[SourceQuality "1"]
[TimeControl "5400+30"]

1. d4 {[%emt 0:00:00]} d5 {[%emt 0:00:00]} 2. c4 {[%emt 0:00:00]} e6 {[%emt 0:00:00]} 3. Nc3 {[%emt 0:00:00]} c5 {[%emt 0:00:00]} 4. cxd5 {[%emt 0:00:36]} exd5 {[%emt 0:00:00]} 5. Nf3 {[%emt 0:00:16]} Nc6 {[%emt 0:00:01]} 6. g3 {[%emt 0:01:49]} c4 {[%emt 0:00:24]} 7. Bg2 {[%emt 0:03:55]} Bb4 {[%emt 0:00:11]} 8. O-O {[%emt 0:05:23]} Nge7 {[%emt 0:10:55]} 9. e4 {[%emt 0:19:44]} Bxc3 {[%emt 0:02:25]} 10. bxc3 {[%emt 0:00:07]} O-O {[%emt 0:12:00]} 11. a4 {[%emt 0:08:05]} Bg4 {[%emt 0:14:01]} 12. Qc2 {[%emt 0:05:02]} Qd7 {[%emt 0:10:32]} 13. Ba3 {[%emt 0:04:10]} dxe4 {[%emt 0:05:39]} 14. Qxe4 {[%emt 0:10:19]} Bf5 {[%emt 0:01:43]} 15. Qf4 {[%emt 0:04:24]} Nd5 {[%emt 0:05:48]} 16. Qd2 {[%emt 0:01:57]} Rfe8 {[%emt 0:04:50]} 17. Rfe1 {[%emt 0:02:32]} f6 {[%emt 0:04:12]} 18. Qb2 {[%emt 0:13:21]} Na5 {[%emt 0:05:10]} 19. Nd2 {[%emt 0:01:45]} Rxe1+ {[%emt 0:08:04]} 20. Rxe1 {[%emt 0:00:04]} Nb6 {[%emt 0:04:48]} 21. Bb4 {[%emt 0:06:58]} Nc6 {[%emt 0:04:39]} 22. a5 {[%emt 0:00:52]} Nd5 {[%emt 0:01:23]} 23. Nxc4 {[%emt 0:00:48]} Ndxb4 {[%emt 0:00:23]} 24. cxb4 {[%emt 0:00:19]} Nxd4 {[%emt 0:02:13]} 25. a6 {[%emt 0:03:57]} Bh3 {[%emt 0:01:35]} 26. axb7 {[%emt 0:03:36]} Rb8 {[%emt 0:00:51]} 27. Bh1 {[%emt 0:01:18]} Re8 {[%emt 0:00:59]} 28. Rxe8+ {[%emt 0:02:08]} Qxe8 {[%emt 0:00:09]} 29. b8=Q {[%emt 0:00:27]} Qxb8 {[%emt 0:00:38]} 30. Qxd4 {[%emt 0:00:28]} Qxb4 {[%emt 0:00:31]} 31. Qd5+ {[%emt 0:00:21]} Kf8 {[%emt 0:00:24]} 32. Qd6+ {[%emt 0:00:40]} Qxd6 {[%emt 0:00:08]} 33. Nxd6 {[%emt 0:00:05]} Ke7 {[%emt 0:00:48]} 34. Nc4 {[%emt 0:00:58]} Be6 {[%emt 0:00:36]} 35. Na3 {[%emt 0:00:21]} a5 {[%emt 0:00:19]} 36. Kf1 {[%emt 0:00:40]} Kd6 {[%emt 0:00:18]} 37. Ke2 {[%emt 0:00:30]} Kc5 {[%emt 0:00:17]} 38. Nc2 {[%emt 0:00:29]} Kc4 {[%emt 0:00:35]} 39. Kd2 {[%emt 0:00:11]} a4 {[%emt 0:00:24]} 40. Bc6 {[%emt 0:00:22]} Kb3 {[%emt 0:01:23]} 41. Nd4+ {[%emt 0:00:13]} Kb2 {[%emt 0:00:16]} 42. Nxe6 {[%emt 0:00:10]} a3 {[%emt 0:00:02]} 43. Bd5 {[%emt 0:00:12]} 1-0

[Event "ROU-ch Women 2021"]
[Site "Iasi"]
[Date "2021.04.22"]
[Round "5.2"]
[White "Ciolacu, Alessia-Mihaela"]
[Black "Lehaci, Miruna-Daria"]
[Result "1-0"]
[ECO "D36"]
[WhiteElo "2052"]
[BlackElo "2188"]
[Annotator "NA"]
[PlyCount "51"]
[EventDate "2021.04.19"]
[EventType "swiss"]
[EventCountry "ROU"]
[SourceTitle "playchess.com"]
[Source "ChessBase"]
[SourceQuality "1"]
[TimeControl "5400+30"]

1. d4 {[%emt 0:00:00]} e6 {[%emt 0:00:00]} 2. c4 {[%emt 0:00:00]} d5 {[%emt 0:00:00]} 3. Nc3 {[%emt 0:00:06]} Be7 {[%emt 0:00:00]} 4. cxd5 {[%emt 0:00:40]} exd5 {[%emt 0:00:00]} 5. Nf3 {[%emt 0:00:07]} Nf6 {[%emt 0:00:00]} 6. Bg5 {[%emt 0:00:21]} c6 {[%emt 0:00:04]} 7. Qc2 {[%emt 0:00:38]} g6 {[%emt 0:00:06]} 8. e3 {[%emt 0:01:23]} Bf5 {[%emt 0:00:12]} 9. Bd3 {[%emt 0:03:20]} Bxd3 {[%emt 0:00:06]} 10. Qxd3 {[%emt 0:00:01]} O-O {[%emt 0:01:43]} 11. O-O {[%emt 0:10:30]} Nbd7 {[%emt 0:03:12]} 12. Rab1 {[%emt 0:01:52]} Re8 {[%emt 0:00:34]} 13. b4 {[%emt 0:00:41]} a6 {[%emt 0:00:08]} 14. Na4 {[%emt 0:01:58]} b5 {[%emt 0:02:00]} 15. Nc5 {[%emt 0:00:15]} Nb6 {[%emt 0:00:39]} 16. Ne5 {[%emt 0:01:29]} Qc8 {[%emt 0:02:56]} 17. f4 {[%emt 0:10:50]} Ng4 {[%emt 0:05:58]} 18. Bxe7 {[%emt 0:21:39]} Rxe7 {[%emt 0:00:31]} 19. Ncd7 {[%emt 0:00:24]} Nxd7 {[%emt 0:08:36]} 20. Nxg4 {[%emt 0:00:09]} Re4 {[%emt 0:21:03]} 21. Rbc1 {[%emt 0:02:34]} Qe8 {[%emt 0:11:57]} 22. Rf3 {[%emt 0:04:47]} Rc8 {[%emt 0:03:03]} 23. Rg3 {[%emt 0:02:43]} Kh8 {[%emt 0:05:28]} 24. f5 {[%emt 0:02:56]} gxf5 {[%emt 0:06:03]} 25. Nh6 {[%emt 0:00:51]} Qe6 {[%emt 0:00:51]} 26. Rxc6 {[%emt 0:00:13]} 1-0

[Event "ROU-ch Women 2021"]
[Site "Iasi"]
[Date "2021.04.22"]
[Round "5.3"]
[White "Sandu, Mihaela"]
[Black "Cosman, Andreea-Marioara"]
[Result "1/2-1/2"]
[ECO "B53"]
[WhiteElo "2268"]
[BlackElo "2164"]
[Annotator "ChessBase"]
[PlyCount "107"]
[EventDate "2021.04.19"]
[EventType "swiss"]
[EventCountry "ROU"]
[SourceTitle "playchess.com"]
[Source "ChessBase"]
[SourceQuality "1"]
[TimeControl "5400+30"]

1. e4 {[%emt 0:00:00]} c5 {[%emt 0:00:34]} 2. Nf3 {[%emt 0:00:00]} d6 {[%emt 0:00:04]} 3. d4 {[%emt 0:00:00]} cxd4 {[%emt 0:00:06]} 4. Qxd4 {[%emt 0:00:00]} Nc6 {[%emt 0:00:23]} 5. Bb5 {[%emt 0:00:21]} Bd7 {[%emt 0:00:07]} 6. Bxc6 {[%emt 0:00:05]} Bxc6 {[%emt 0:00:08]} 7. Nc3 {[%emt 0:00:03]} Nf6 {[%emt 0:03:34]} 8. Bg5 {[%emt 0:00:06]} e6 {[%emt 0:02:20]} 9. O-O-O {[%emt 0:00:20]} Be7 {[%emt 0:01:18]} 10. Qd3 {[%emt 0:00:23]} Qa5 {[%emt 0:08:53]} 11. h4 {[%emt 0:00:24]} Rd8 {[%emt 0:05:38]} 12. Nd4 {[%emt 0:09:37]} h6 {[%emt 0:05:59]} 13. Bd2 {[%emt 0:28:13]} Qc7 {[%emt 0:11:29]} 14. f4 {[%emt 0:06:05]} a6 {[%emt 0:08:01]} 15. Qe2 {[%emt 0:11:12]} b5 {[%emt 0:03:44]} 16. Nxc6 {[%emt 0:05:14]} Qxc6 {[%emt 0:00:07]} 17. e5 {[%emt 0:02:30]} dxe5 {[%emt 0:08:32]} 18. fxe5 {[%emt 0:00:32]} Nd5 {[%emt 0:00:17]} 19. Nxd5 {[%emt 0:08:26]} Rxd5 {[%emt 0:01:36]} 20. Qg4 {[%emt 0:00:23]} g6 {[%emt 0:03:20]} 21. Rhf1 {[%emt 0:09:24]} h5 {[%emt 0:05:06]} 22. Qf3 {[%emt 0:00:49]} O-O {[%emt 0:01:24]} 23. Kb1 {[%emt 0:07:57]} Qc4 {[%emt 0:04:31]} 24. Bh6 {[%emt 0:04:31]} Rxd1+ {[%emt 0:00:15]} 25. Qxd1 {[%emt 0:00:21]} Rc8 {[%emt 0:01:42]} 26. g3 {[%emt 0:00:22]} Qe4 {[%emt 0:06:45]} 27. Re1 {[%emt 0:00:35]} Qd5 {[%emt 0:01:29]} 28. Qe2 {[%emt 0:01:58]} Rd8 {[%emt 0:01:32]} 29. a3 {[%emt 0:01:03]} a5 {[%emt 0:02:48]} 30. Rf1 {[%emt 0:00:25]} Rd7 {[%emt 0:00:22]} 31. Qf2 {[%emt 0:00:52]} Bd8 {[%emt 0:00:14]} 32. Qf4 {[%emt 0:01:27]} Qd4 {[%emt 0:00:45]} 33. Qxd4 {[%emt 0:00:46]} Rxd4 {[%emt 0:00:06]} 34. Re1 {[%emt 0:00:39]} Kh7 {[%emt 0:01:57]} 35. Bf4 {[%emt 0:00:24]} g5 {[%emt 0:02:23]} 36. hxg5 {[%emt 0:00:54]} Kg6 {[%emt 0:00:22]} 37. c3 {[%emt 0:00:38]} Rd5 {[%emt 0:00:32]} 38. Kc2 {[%emt 0:00:57]} Bxg5 {[%emt 0:02:32]} 39. Bxg5 {[%emt 0:00:22]} Kxg5 {[%emt 0:00:06]} 40. a4 {[%emt 0:00:05]} bxa4 {[%emt 0:03:18]} 41. c4 {[%emt 0:00:02]} Rd8 {[%emt 0:01:53]} 42. Kc3 {[%emt 0:00:09]} Rb8 {[%emt 0:01:36]} 43. c5 {[%emt 0:00:45]} Rb3+ {[%emt 0:00:29]} 44. Kd4 {[%emt 0:00:19]} Rxb2 {[%emt 0:01:05]} 45. Rc1 {[%emt 0:00:22]} a3 {[%emt 0:00:39]} 46. Kc3 {[%emt 0:01:01]} Rb5 {[%emt 0:02:06]} 47. Kc4 {[%emt 0:00:42]} Rb4+ {[%emt 0:00:16]} 48. Kc3 {[%emt 0:00:01]} Kg4 {[%emt 0:00:56]} 49. Ra1 {[%emt 0:00:23]} Rb5 {[%emt 0:00:31]} 50. Kc4 {[%emt 0:00:11]} Rb4+ {[%emt 0:00:06]} 51. Kc3 {[%emt 0:00:03]} Rb5 {[%emt 0:00:52]} 52. Kc4 {[%emt 0:00:05]} Rb4+ {[%emt 0:00:15]} 53. Kc3 {[%emt 0:00:03]} Rb5 {[%emt 0:00:30]} 54. Kc4 {[%emt 0:00:15]} 1/2-1/2

[Event "ROU-ch Women 2021"]
[Site "Iasi"]
[Date "2021.04.22"]
[Round "5.4"]
[White "Maria, Lia-Alexandra"]
[Black "Anghel, Maria"]
[Result "0-1"]
[ECO "B28"]
[WhiteElo "1713"]
[BlackElo "1918"]
[Annotator "NA"]
[PlyCount "52"]
[EventDate "2021.04.19"]
[EventType "swiss"]
[EventCountry "ROU"]
[SourceTitle "playchess.com"]
[Source "ChessBase"]
[SourceQuality "1"]
[TimeControl "5400+30"]

1. e4 {[%emt 0:00:00]} c5 {[%emt 0:00:00]} 2. Nf3 {[%emt 0:00:00]} a6 {[%emt 0:00:00]} 3. d4 {[%emt 0:00:22]} cxd4 {[%emt 0:00:04]} 4. Nxd4 {[%emt 0:00:11]} Nf6 {[%emt 0:00:09]} 5. Nc3 {[%emt 0:01:45]} e5 {[%emt 0:00:33]} 6. Nf3 {[%emt 0:04:42]} Bb4 {[%emt 0:01:23]} 7. Bd2 {[%emt 0:04:49]} O-O {[%emt 0:11:14]} 8. Bd3 {[%emt 0:03:56]} Bxc3 {[%emt 0:09:43]} 9. Bxc3 {[%emt 0:00:31]} d6 {[%emt 0:02:01]} 10. Qe2 {[%emt 0:11:03]} Nc6 {[%emt 0:04:37]} 11. O-O-O {[%emt 0:02:36]} b5 {[%emt 0:03:40]} 12. a3 {[%emt 0:02:46]} Rb8 {[%emt 0:05:42]} 13. h3 {[%emt 0:10:41]} Qc7 {[%emt 0:11:00]} 14. g4 {[%emt 0:03:48]} b4 {[%emt 0:08:18]} 15. axb4 {[%emt 0:02:23]} Nxb4 {[%emt 0:00:20]} 16. Bc4 {[%emt 0:05:45]} Be6 {[%emt 0:05:30]} 17. Bxe6 {[%emt 0:02:33]} fxe6 {[%emt 0:00:07]} 18. Bxb4 {[%emt 0:04:59]} Rxb4 {[%emt 0:00:07]} 19. Ng5 {[%emt 0:02:36]} Rfb8 {[%emt 0:10:11]} 20. c3 {[%emt 0:03:32]} Rxb2 {[%emt 0:04:44]} 21. Qxb2 {[%emt 0:01:37]} Rxb2 {[%emt 0:00:03]} 22. Kxb2 {[%emt 0:00:16]} h6 {[%emt 0:02:52]} 23. Nxe6 {[%emt 0:03:14]} Qe7 {[%emt 0:02:27]} 24. g5 {[%emt 0:00:33]} Nxe4 {[%emt 0:01:20]} 25. Rhe1 {[%emt 0:02:30]} d5 {[%emt 0:02:17]} 26. g6 {[%emt 0:01:49]} Nxf2 {[%emt 0:05:39]} 0-1

[Event "ROU-ch Women 2021"]
[Site "Iasi"]
[Date "2021.04.22"]
[Round "5.5"]
[White "Pirvan, Maria"]
[Black "Pancu, Aureliana-Eugenia"]
[Result "0-1"]
[ECO "C10"]
[WhiteElo "1529"]
[BlackElo "1878"]
[Annotator "NA"]
[PlyCount "58"]
[EventDate "2021.04.19"]
[EventType "swiss"]
[EventCountry "ROU"]
[SourceTitle "playchess.com"]
[Source "ChessBase"]
[SourceQuality "1"]
[TimeControl "5400+30"]

1. e4 {[%emt 0:00:00]} e6 {[%emt 0:00:00]} 2. d4 {[%emt 0:00:00]} d5 {[%emt 0:00:00]} 3. Nd2 {[%emt 0:00:00]} dxe4 {[%emt 0:01:48]} 4. Nxe4 {[%emt 0:00:00]} Nd7 {[%emt 0:00:17]} 5. c3 {[%emt 0:01:11]} Ngf6 {[%emt 0:00:47]} 6. Nxf6+ {[%emt 0:00:45]} Nxf6 {[%emt 0:00:45]} 7. Nf3 {[%emt 0:00:55]} Be7 {[%emt 0:03:00]} 8. Bd3 {[%emt 0:01:51]} Bd7 {[%emt 0:08:47]} 9. Ne5 {[%emt 0:05:20]} h6 {[%emt 0:04:54]} 10. O-O {[%emt 0:10:45]} O-O {[%emt 0:04:29]} 11. Qf3 {[%emt 0:12:07]} Rb8 {[%emt 0:03:51]} 12. Qh3 {[%emt 0:19:24]} Bc6 {[%emt 0:08:44]} 13. Nxc6 {[%emt 0:04:29]} bxc6 {[%emt 0:00:11]} 14. Bxh6 {[%emt 0:07:08]} gxh6 {[%emt 0:02:28]} 15. Qxh6 {[%emt 0:03:09]} Qd5 {[%emt 0:00:08]} 16. g4 {[%emt 0:01:06]} Ne4 {[%emt 0:02:56]} 17. f3 {[%emt 0:13:15]} Qg5 {[%emt 0:00:20]} 18. Qxg5+ {[%emt 0:02:04]} Nxg5 {[%emt 0:00:12]} 19. f4 {[%emt 0:02:17]} Nh7 {[%emt 0:00:35]} 20. b4 {[%emt 0:00:08]} Rfd8 {[%emt 0:00:35]} 21. g5 {[%emt 0:02:31]} Nf8 {[%emt 0:02:46]} 22. Be4 {[%emt 0:01:07]} c5 {[%emt 0:00:26]} 23. bxc5 {[%emt 0:01:25]} Rb2 {[%emt 0:00:15]} 24. Rfb1 {[%emt 0:01:49]} Rdb8 {[%emt 0:00:10]} 25. Bc2 {[%emt 0:01:41]} Ng6 {[%emt 0:02:03]} 26. Bxg6 {[%emt 0:03:48]} fxg6 {[%emt 0:00:13]} 27. Rxb2 {[%emt 0:00:33]} Rxb2 {[%emt 0:00:03]} 28. Re1 {[%emt 0:02:27]} Kf7 {[%emt 0:00:17]} 29. Rc1 {[%emt 0:00:55]} Rxa2 {[%emt 0:00:15]} 0-1

[Event "ROU-ch Women 2021"]
[Site "Iasi"]
[Date "2021.04.22"]
[Round "5.6"]
[White "Andries, Alexia"]
[Black "Marcu, Daria-Ana"]
[Result "0-1"]
[ECO "E41"]
[WhiteElo "1553"]
[BlackElo "1533"]
[Annotator "NA"]
[PlyCount "76"]
[EventDate "2021.04.19"]
[EventType "swiss"]
[EventCountry "ROU"]
[SourceTitle "playchess.com"]
[Source "ChessBase"]
[SourceQuality "1"]
[TimeControl "5400+30"]

1. d4 {[%emt 0:00:06]} Nf6 {[%emt 0:00:00]} 2. c4 {[%emt 0:00:00]} e6 {[%emt 0:00:00]} 3. Nc3 {[%emt 0:00:46]} Bb4 {[%emt 0:00:00]} 4. e3 Bxc3+ {[%emt 0:00:13]} 5. bxc3 {[%emt 0:00:58]} c5 {[%emt 0:00:13]} 6. Nf3 {[%emt 0:02:17]} O-O {[%emt 0:00:43]} 7. Bd3 {[%emt 0:01:33]} d6 {[%emt 0:00:26]} 8. O-O {[%emt 0:00:44]} Nc6 {[%emt 0:01:08]} 9. e4 {[%emt 0:05:48]} e5 {[%emt 0:00:26]} 10. d5 {[%emt 0:00:29]} Ne7 {[%emt 0:00:14]} 11. Bg5 {[%emt 0:04:00]} Ng6 {[%emt 0:00:30]} 12. Rb1 {[%emt 0:07:51]} h6 {[%emt 0:00:46]} 13. Bc1 {[%emt 0:01:14]} b6 {[%emt 0:02:56]} 14. Qc2 {[%emt 0:03:22]} Nh5 {[%emt 0:01:17]} 15. Ne1 {[%emt 0:20:21]} Nhf4 {[%emt 0:02:00]} 16. f3 {[%emt 0:00:39]} h5 {[%emt 0:12:02]} 17. Kh1 {[%emt 0:11:02]} h4 {[%emt 0:01:31]} 18. Rb2 {[%emt 0:07:50]} Kh7 {[%emt 0:01:45]} 19. a4 {[%emt 0:06:36]} Rh8 {[%emt 0:01:50]} 20. a5 {[%emt 0:02:13]} Nh5 {[%emt 0:01:03]} 21. Kg1 {[%emt 0:04:59]} Ngf4 {[%emt 0:00:57]} 22. Bxf4 {[%emt 0:00:44]} Nxf4 {[%emt 0:00:10]} 23. Ra2 {[%emt 0:03:22]} h3 {[%emt 0:07:22]} 24. g3 {[%emt 0:00:18]} Nh5 {[%emt 0:06:30]} 25. Qf2 {[%emt 0:02:14]} Rb8 {[%emt 0:04:38]} 26. axb6 {[%emt 0:00:41]} axb6 {[%emt 0:00:38]} 27. f4 {[%emt 0:01:16]} exf4 {[%emt 0:07:02]} 28. gxf4 {[%emt 0:00:11]} Kg8 {[%emt 0:00:51]} 29. Kh1 {[%emt 0:01:22]} Nf6 {[%emt 0:01:35]} 30. e5 {[%emt 0:04:15]} Ng4 {[%emt 0:01:50]} 31. Qe2 {[%emt 0:02:03]} Kf8 {[%emt 0:12:13]} 32. e6 {[%emt 0:01:37]} Nf6 {[%emt 0:00:32]} 33. f5 {[%emt 0:00:54]} Bb7 {[%emt 0:01:16]} 34. Be4 {[%emt 0:00:25]} Rh4 {[%emt 0:01:04]} 35. Bf3 {[%emt 0:02:13]} Rf4 {[%emt 0:01:04]} 36. Qd3 {[%emt 0:00:51]} b5 {[%emt 0:02:50]} 37. Qb1 {[%emt 0:02:16]} Rxc4 {[%emt 0:01:12]} 38. Rb2 {[%emt 0:00:55]} Nxd5 {[%emt 0:00:58]} 0-1

[Event "ROU-ch Women 2021"]
[Site "Iasi"]
[Date "2021.04.23"]
[Round "6.6"]
[White "Andries, Alexia"]
[Black "Pirvan, Maria"]
[Result "1/2-1/2"]
[ECO "D94"]
[WhiteElo "1553"]
[BlackElo "1529"]
[Annotator "NA RC"]
[PlyCount "130"]
[EventDate "2021.04.19"]
[EventType "swiss"]
[EventCountry "ROU"]
[SourceTitle "playchess.com"]
[Source "ChessBase"]
[SourceQuality "1"]
[TimeControl "5400+30"]

1. d4 {[%emt 0:00:00]} Nf6 {[%emt 0:00:00]} 2. c4 {[%emt 0:00:00]} c5 {[%emt 0:00:00]} 3. e3 {[%emt 0:00:00]} g6 {[%emt 0:00:00]} 4. Nc3 {[%emt 0:00:50]} Bg7 {[%emt 0:00:06]} 5. Nf3 {[%emt 0:00:34]} O-O {[%emt 0:01:02]} 6. Bd3 {[%emt 0:01:14]} d5 {[%emt 0:01:28]} 7. O-O {[%emt 0:01:09]} cxd4 {[%emt 0:06:23]} 8. exd4 {[%emt 0:00:08]} Nc6 {[%emt 0:00:19]} 9. Re1 {[%emt 0:05:29]} Bg4 {[%emt 0:03:27]} 10. Be2 {[%emt 0:04:18]} dxc4 {[%emt 0:08:47]} 11. d5 {[%emt 0:01:05]} Nb4 {[%emt 0:00:30]} 12. h3 {[%emt 0:09:23]} Bf5 {[%emt 0:18:24]} 13. Bxc4 {[%emt 0:20:53]} Nc2 {[%emt 0:11:17]} 14. Bf4 {[%emt 0:00:57]} Nxa1 {[%emt 0:07:23]} 15. Qxa1 {[%emt 0:00:10]} Rc8 {[%emt 0:01:33]} 16. Bb3 {[%emt 0:00:43]} Nh5 {[%emt 0:11:32]} 17. Be5 {[%emt 0:01:32]} Bxe5 {[%emt 0:00:58]} 18. Nxe5 {[%emt 0:00:09]} Nf4 {[%emt 0:04:07]} 19. Qd1 {[%emt 0:04:51]} Qd6 {[%emt 0:09:33]} 20. Qd2 {[%emt 0:05:06]} g5 {[%emt 0:04:26]} 21. h4 {[%emt 0:03:56]} f6 {[%emt 0:07:54]} 22. Nf3 {[%emt 0:00:57]} g4 {[%emt 0:01:13]} 23. Nd4 {[%emt 0:00:38]} Bg6 {[%emt 0:00:34]} 24. Ne6 {[%emt 0:02:35]} Nxe6 {[%emt 0:00:32]} 25. Rxe6 {[%emt 0:00:07]} Qb4 {[%emt 0:00:28]} 26. d6 {[%emt 0:00:33]} Bf7 {[%emt 0:00:26]} 27. dxe7 {[%emt 0:02:36]} Bxe6 {[%emt 0:00:22]} 28. Bxe6+ {[%emt 0:00:23]} Kh8 {[%emt 0:00:23]} 29. exf8=Q+ {[%emt 0:02:05]} Rxf8 {[%emt 0:00:00]} 30. Qh6 {[%emt 0:00:02]} Qe7 {[%emt 0:00:00]} 31. Bxg4 {[%emt 0:02:56]} Qg7 {[%emt 0:00:43]} 32. Qxg7+ {[%emt 0:00:27]} Kxg7 {[%emt 0:00:05]} 33. Kh2 {[%emt 0:01:19]} Rd8 {[%emt 0:00:39]} 34. Ne4 {[%emt 0:05:02]} Rd4 {[%emt 0:00:46]} 35. Bf3 {[%emt 0:00:55]} f5 {[%emt 0:01:09]} 36. Nc5 {[%emt 0:01:10]} Rxh4+ {[%emt 0:00:40]} 37. Kg3 {[%emt 0:00:09]} Rb4 {[%emt 0:00:24]} 38. Nxb7 {[%emt 0:00:40]} Rxb2 {[%emt 0:00:43]} 39. a4 {[%emt 0:00:06]} Rb4 {[%emt 0:00:29]} 40. a5 {[%emt 0:00:12]} Ra4 {[%emt 0:00:43]} 41. Kh3 {[%emt 0:01:33]} Kf6 {[%emt 0:00:29]} 42. g3 {[%emt 0:00:44]} Ra3 {[%emt 0:00:28]} 43. Kg2 {[%emt 0:00:41]} a6 {[%emt 0:00:32]} 44. Be2 {[%emt 0:00:52]} Rb3 {[%emt 0:00:31]} 45. Bxa6 {[%emt 0:01:10]} Ke7 {[%emt 0:00:23]} 46. f3 {[%emt 0:01:02]} Rb2+ {[%emt 0:00:28]} 47. Kh3 {[%emt 0:00:31]} Rb3 {[%emt 0:00:29]} 48. f4 {[%emt 0:00:17]} h6 {[%emt 0:00:37]} 49. Nc5 {[%emt 0:01:28]} Ra3 {[%emt 0:00:12]} 50. Bb7 {[%emt 0:00:18]} Rxa5 {[%emt 0:00:22]} 51. Nd3 {[%emt 0:00:15]} Kf6 {[%emt 0:00:45]} 52. Ne5 {[%emt 0:00:30]} Ra3 {[%emt 0:00:40]} 53. Bf3 {[%emt 0:01:04]} Ra4 {[%emt 0:00:25]} 54. Nd7+ {[%emt 0:01:00]} Kg6 {[%emt 0:00:36]} 55. Nb6 {[%emt 0:00:49]} Ra6 {[%emt 0:00:34]} 56. Nd5 {[%emt 0:00:16]} Re6 {[%emt 0:00:27]} 57. Kg2 {[%emt 0:01:31]} Rd6 {[%emt 0:00:31]} 58. Kh3 {[%emt 0:01:05]} Re6 {[%emt 0:00:14]} 59. g4 {[%emt 0:00:57]} fxg4+ {[%emt 0:00:23]} 60. Kxg4 {[%emt 0:00:12]} Ra6 {[%emt 0:00:44]} 61. Be4+ {[%emt 0:01:04]} Kf7 {[%emt 0:00:27]} 62. f5 {[%emt 0:01:08]} Ra1 {[%emt 0:00:42]} 63. Nf4 {[%emt 0:00:25]} Rf1 {[%emt 0:00:27]} 64. Bd5+ {[%emt 0:00:39]} Kf6 {[%emt 0:00:31]} 65. Nh5+ {[%emt 0:00:56]} Ke5 {[%emt 0:00:29]} 1/2-1/2